[Event "Titled Tuesday Blitz February 14 Early 2023"]
[White "Janaszak, Dawid"]
[Black "Sanchez, Robert"]
[WhiteFideId "1119206"]
[BlackFideId "2034360"]
[WhiteElo "2316"]
[BlackElo "1966"]
[Result "0-1"]
[Round "04"]
[TimeControl "180+2"]
[Date "2023.02.15"]
[WhiteClock "0:01:37"]
[BlackClock "0:00:23"]

1. e4 {[%clk 0:03:00]}  e6 {[%clk 0:02:59]} 2. b3 {[%clk 0:03:00]}  d5 {[%clk 0:02:59]} 3. Bb2 {[%clk 0:03:00]}  dxe4 {[%clk 0:02:59]} 4. Nc3 {[%clk 0:03:01]}  Nf6 {[%clk 0:03:00]} 5. Qe2 {[%clk 0:03:01]}  Be7 {[%clk 0:02:59]} 6. g4 {[%clk 0:02:59]}  h6 {[%clk 0:02:56]} 7. Bg2 {[%clk 0:02:57]}  Nc6 {[%clk 0:02:50]} 8. O-O-O {[%clk 0:02:53]}  Nd4 {[%clk 0:02:44]} 9. Qe1 {[%clk 0:02:54]}  a5 {[%clk 0:02:41]} 10. a4 {[%clk 0:02:54]}  b5 {[%clk 0:02:39]} 11. Nxe4 {[%clk 0:02:51]}  Rb8 {[%clk 0:02:29]} 12. axb5 {[%clk 0:02:47]}  O-O {[%clk 0:02:20]} 13. g5 {[%clk 0:02:42]}  hxg5 {[%clk 0:02:17]} 14. Nxg5 {[%clk 0:02:43]}  Rxb5 {[%clk 0:02:08]} 15. h4 {[%clk 0:02:40]}  a4 {[%clk 0:02:06]} 16. N1f3 {[%clk 0:02:23]}  Nxf3 {[%clk 0:01:58]} 17. Bxf3 {[%clk 0:02:24]}  axb3 {[%clk 0:01:51]} 18. Qe2 {[%clk 0:02:05]}  Ba6 {[%clk 0:01:28]} 19. c4 {[%clk 0:02:02]}  Ra5 {[%clk 0:00:59]} 20. Rdg1 {[%clk 0:02:01]}  Ra2 {[%clk 0:00:54]} 21. Ne4 {[%clk 0:01:52]}  Rxb2 {[%clk 0:00:51]} 22. Kxb2 {[%clk 0:01:49]}  Nxe4 {[%clk 0:00:43]} 23. Qxe4 {[%clk 0:01:44]}  Bf6+ {[%clk 0:00:43]} 24. Kb1 {[%clk 0:01:42]}  Qxd2 {[%clk 0:00:35]} 25. Qe2 {[%clk 0:01:37]}  Qc3 {[%clk 0:00:23]} 0-1


[Site "https://www.chess.com"]

[Event "Titled Tuesday Blitz February 14 Early 2023"]
[White "Zherebtsova, Alexandra"]
[Black "Ambartsumova, Karina"]
[WhiteFideId "24129518"]
[BlackFideId "4166299"]
[WhiteElo "2155"]
[BlackElo "2393"]
[Result "1-0"]
[Round "04"]
[TimeControl "180+2"]
[Date "2023.02.15"]
[WhiteClock "0:00:14"]
[BlackClock "0:00:06"]

1. d4 {[%clk 0:03:00]}  Nf6 {[%clk 0:02:59]} 2. Nf3 {[%clk 0:03:00]}  d5 {[%clk 0:02:58]} 3. c4 {[%clk 0:02:59]}  e6 {[%clk 0:02:58]} 4. e3 {[%clk 0:02:58]}  Be7 {[%clk 0:02:57]} 5. Nbd2 {[%clk 0:02:54]}  O-O {[%clk 0:02:54]} 6. b3 {[%clk 0:02:54]}  c5 {[%clk 0:02:49]} 7. Bd3 {[%clk 0:02:48]}  cxd4 {[%clk 0:02:44]} 8. exd4 {[%clk 0:02:42]}  Nc6 {[%clk 0:02:44]} 9. Bb2 {[%clk 0:02:39]}  b6 {[%clk 0:02:41]} 10. O-O {[%clk 0:02:38]}  Bb7 {[%clk 0:02:27]} 11. Qe2 {[%clk 0:02:26]}  Rc8 {[%clk 0:02:10]} 12. Rac1 {[%clk 0:02:22]}  Nb4 {[%clk 0:01:46]} 13. Bb1 {[%clk 0:02:19]}  Ba6 {[%clk 0:01:38]} 14. Ne5 {[%clk 0:02:05]}  Nc6 {[%clk 0:01:34]} 15. Ndf3 {[%clk 0:01:50]}  g6 {[%clk 0:00:53]} 16. Rfd1 {[%clk 0:01:46]}  Nd7 {[%clk 0:00:42]} 17. Nxc6 {[%clk 0:01:10]}  Rxc6 {[%clk 0:00:42]} 18. Bd3 {[%clk 0:01:10]}  Nf6 {[%clk 0:00:33]} 19. Qe3 {[%clk 0:00:59]}  Rc8 {[%clk 0:00:30]} 20. Ne5 {[%clk 0:00:53]}  Bb7 {[%clk 0:00:31]} 21. c5 {[%clk 0:00:46]}  Rc7 {[%clk 0:00:19]} 22. b4 {[%clk 0:00:44]}  bxc5 {[%clk 0:00:17]} 23. dxc5 {[%clk 0:00:39]}  Re8 {[%clk 0:00:12]} 24. Qd4 {[%clk 0:00:38]}  a6 {[%clk 0:00:11]} 25. Ng4 {[%clk 0:00:36]}  e5 {[%clk 0:00:09]} 26. Qxe5 {[%clk 0:00:29]}  Rc6 {[%clk 0:00:09]} 27. Qd4 {[%clk 0:00:27]}  Bc8 {[%clk 0:00:08]} 28. Ne3 {[%clk 0:00:18]}  Be6 {[%clk 0:00:07]} 29. Bf1 {[%clk 0:00:18]}  Qd7 {[%clk 0:00:06]} 30. a4 {[%clk 0:00:17]}  Rcc8 {[%clk 0:00:06]} 31. b5 {[%clk 0:00:16]}  a5 {[%clk 0:00:06]} 32. c6 {[%clk 0:00:16]}  Qd6 {[%clk 0:00:07]} 33. Rd3 {[%clk 0:00:15]}  Red8 {[%clk 0:00:07]} 34. Ba3 {[%clk 0:00:16]}  Qc7 {[%clk 0:00:07]} 35. Bxe7 {[%clk 0:00:15]}  Qxe7 {[%clk 0:00:08]} 36. Qc5 {[%clk 0:00:15]}  Qxc5 {[%clk 0:00:06]} 37. Rxc5 {[%clk 0:00:15]}  Ne4 {[%clk 0:00:07]} 38. Rc1 {[%clk 0:00:14]}  d4 {[%clk 0:00:08]} 39. Nc2 {[%clk 0:00:12]}  Nc5 {[%clk 0:00:07]} 40. Rxd4 {[%clk 0:00:12]}  Nb3 {[%clk 0:00:06]} 41. Rxd8+ {[%clk 0:00:11]}  Rxd8 {[%clk 0:00:07]} 42. Rb1 {[%clk 0:00:12]}  Nc5 {[%clk 0:00:07]} 43. Ne3 {[%clk 0:00:11]}  Nxa4 {[%clk 0:00:07]} 44. c7 {[%clk 0:00:11]}  Rc8 {[%clk 0:00:07]} 45. b6 {[%clk 0:00:12]}  Nxb6 {[%clk 0:00:07]} 46. Rxb6 {[%clk 0:00:11]}  Rxc7 {[%clk 0:00:08]} 47. Ra6 {[%clk 0:00:12]}  Rc5 {[%clk 0:00:08]} 48. h3 {[%clk 0:00:12]}  h5 {[%clk 0:00:08]} 49. Be2 {[%clk 0:00:11]}  Kg7 {[%clk 0:00:09]} 50. Bf3 {[%clk 0:00:11]}  Kf6 {[%clk 0:00:08]} 51. Rc6 {[%clk 0:00:11]}  Rb5 {[%clk 0:00:08]} 52. Ra6 {[%clk 0:00:10]}  Rc5 {[%clk 0:00:08]} 53. Bd5 {[%clk 0:00:10]}  Ke5 {[%clk 0:00:06]} 54. Bxe6 {[%clk 0:00:10]}  fxe6 {[%clk 0:00:07]} 55. Rxa5 {[%clk 0:00:10]}  Rxa5 {[%clk 0:00:05]} 56. Nc4+ {[%clk 0:00:10]}  Kd4 {[%clk 0:00:05]} 57. Nxa5 {[%clk 0:00:11]}  Kc5 {[%clk 0:00:03]} 58. Nb3+ {[%clk 0:00:11]}  Kc4 {[%clk 0:00:03]} 59. Nd2+ {[%clk 0:00:11]}  Kd3 {[%clk 0:00:04]} 60. Nf3 {[%clk 0:00:12]}  Ke4 {[%clk 0:00:04]} 61. Kf1 {[%clk 0:00:11]}  Kf5 {[%clk 0:00:04]} 62. Ke2 {[%clk 0:00:12]}  g5 {[%clk 0:00:04]} 63. Ke3 {[%clk 0:00:11]}  g4 {[%clk 0:00:04]} 64. hxg4+ {[%clk 0:00:12]}  hxg4 {[%clk 0:00:05]} 65. Nd4+ {[%clk 0:00:12]}  Ke5 {[%clk 0:00:05]} 66. Ne2 {[%clk 0:00:13]}  Kf5 {[%clk 0:00:05]} 67. Ng3+ {[%clk 0:00:13]}  Ke5 {[%clk 0:00:06]} 68. Nf1 {[%clk 0:00:11]}  Kf5 {[%clk 0:00:06]} 69. g3 {[%clk 0:00:11]}  Ke5 {[%clk 0:00:06]} 70. Nd2 {[%clk 0:00:12]}  Kf5 {[%clk 0:00:06]} 71. Nb3 {[%clk 0:00:12]}  Ke5 {[%clk 0:00:07]} 72. Nc1 {[%clk 0:00:13]}  Kf5 {[%clk 0:00:07]} 73. Nd3 {[%clk 0:00:13]}  e5 {[%clk 0:00:07]} 74. Nc5 {[%clk 0:00:13]}  Kf6 {[%clk 0:00:07]} 75. Ke4 {[%clk 0:00:14]}  Kg5 {[%clk 0:00:06]} 76. Kxe5 {[%clk 0:00:14]} 1-0


[Site "https://www.chess.com"]

[Event "Titled Tuesday Blitz February 14 Early 2023"]
[White "Prado Lobo, Jonas"]
[Black "Begunov, Konstantin"]
[WhiteFideId "32050666"]
[BlackFideId "4118510"]
[WhiteElo "2313"]
[BlackElo "2325"]
[Result "0-1"]
[Round "04"]
[TimeControl "180+2"]
[Date "2023.02.15"]
[WhiteClock "0:00:09"]
[BlackClock "0:00:11"]

1. e4 {[%clk 0:02:53]}  c5 {[%clk 0:02:59]} 2. Nf3 {[%clk 0:02:53]}  d6 {[%clk 0:03:00]} 3. Bb5+ {[%clk 0:02:51]}  Bd7 {[%clk 0:02:59]} 4. Bxd7+ {[%clk 0:02:51]}  Qxd7 {[%clk 0:03:00]} 5. c4 {[%clk 0:02:51]}  Nf6 {[%clk 0:03:00]} 6. Nc3 {[%clk 0:02:51]}  Nc6 {[%clk 0:03:00]} 7. O-O {[%clk 0:02:49]}  Nd4 {[%clk 0:03:00]} 8. Re1 {[%clk 0:02:45]}  Nxf3+ {[%clk 0:02:58]} 9. Qxf3 {[%clk 0:02:44]}  g6 {[%clk 0:02:57]} 10. b3 {[%clk 0:02:25]}  Bg7 {[%clk 0:02:54]} 11. Bb2 {[%clk 0:02:26]}  O-O {[%clk 0:02:51]} 12. Nd5 {[%clk 0:02:23]}  Nxd5 {[%clk 0:02:38]} 13. Bxg7 {[%clk 0:02:24]}  Kxg7 {[%clk 0:02:38]} 14. exd5 {[%clk 0:02:19]}  e5 {[%clk 0:02:33]} 15. dxe6 {[%clk 0:02:09]}  fxe6 {[%clk 0:02:30]} 16. Qh3 {[%clk 0:02:09]}  Rf5 {[%clk 0:02:23]} 17. f4 {[%clk 0:01:40]}  Raf8 {[%clk 0:01:17]} 18. Qc3+ {[%clk 0:01:28]}  Kg8 {[%clk 0:01:12]} 19. g3 {[%clk 0:01:25]}  e5 {[%clk 0:01:03]} 20. fxe5 {[%clk 0:01:23]}  dxe5 {[%clk 0:01:03]} 21. Rxe5 {[%clk 0:01:14]}  Rf2 {[%clk 0:00:29]} 22. Qe3 {[%clk 0:00:42]}  Qxd2 {[%clk 0:00:19]} 23. Qxd2 {[%clk 0:00:40]}  Rxd2 {[%clk 0:00:20]} 24. Rf1 {[%clk 0:00:32]}  Rxf1+ {[%clk 0:00:19]} 25. Kxf1 {[%clk 0:00:33]}  Rxa2 {[%clk 0:00:18]} 26. Rxc5 {[%clk 0:00:32]}  b6 {[%clk 0:00:16]} 27. Rc7 {[%clk 0:00:31]}  Rb2 {[%clk 0:00:14]} 28. Rxa7 {[%clk 0:00:27]}  Rxb3 {[%clk 0:00:14]} 29. Rc7 {[%clk 0:00:24]}  Rb2 {[%clk 0:00:13]} 30. h4 {[%clk 0:00:19]}  Rc2 {[%clk 0:00:13]} 31. Ke1 {[%clk 0:00:17]}  h5 {[%clk 0:00:10]} 32. Rc6 {[%clk 0:00:15]}  Kg7 {[%clk 0:00:09]} 33. Kd1 {[%clk 0:00:13]}  Rc3 {[%clk 0:00:09]} 34. Ke2 {[%clk 0:00:08]}  Rxg3 {[%clk 0:00:08]} 35. Rxb6 {[%clk 0:00:09]}  Rg4 {[%clk 0:00:09]} 36. c5 {[%clk 0:00:09]}  Rxh4 {[%clk 0:00:09]} 37. c6 {[%clk 0:00:09]}  Rc4 {[%clk 0:00:09]} 38. Kd3 {[%clk 0:00:09]}  Rc1 {[%clk 0:00:09]} 39. Kd4 {[%clk 0:00:09]}  h4 {[%clk 0:00:09]} 40. Kd5 {[%clk 0:00:08]}  h3 {[%clk 0:00:09]} 41. Rb3 {[%clk 0:00:08]}  h2 {[%clk 0:00:09]} 42. Rh3 {[%clk 0:00:05]}  h1=Q+ {[%clk 0:00:09]} 43. Rxh1 {[%clk 0:00:06]}  Rxh1 {[%clk 0:00:09]} 44. c7 {[%clk 0:00:06]}  Rc1 {[%clk 0:00:10]} 45. Kd6 {[%clk 0:00:06]}  g5 {[%clk 0:00:11]} 46. Kd7 {[%clk 0:00:07]}  g4 {[%clk 0:00:11]} 47. c8=Q {[%clk 0:00:08]}  Rxc8 {[%clk 0:00:11]} 48. Kxc8 {[%clk 0:00:09]}  g3 {[%clk 0:00:11]} 0-1


[Site "https://www.chess.com"]

[Event "Titled Tuesday Blitz February 14 Early 2023"]
[White "Ordekalog"]
[Black "Antonio, Jorge Carlos"]
[BlackFideId "113190"]
[WhiteElo "2544"]
[BlackElo "2277"]
[Result "1-0"]
[Round "04"]
[TimeControl "180+2"]
[Date "2023.02.15"]
[WhiteClock "0:00:38"]
[BlackClock "0:01:11"]

1. e4 {[%clk 0:03:00]}  c5 {[%clk 0:02:56]} 2. d3 {[%clk 0:03:00]}  e6 {[%clk 0:02:57]} 3. g3 {[%clk 0:02:59]}  d6 {[%clk 0:02:57]} 4. Bg2 {[%clk 0:02:58]}  g6 {[%clk 0:02:57]} 5. f4 {[%clk 0:02:58]}  Bg7 {[%clk 0:02:58]} 6. Nf3 {[%clk 0:02:58]}  Ne7 {[%clk 0:02:58]} 7. O-O {[%clk 0:02:57]}  O-O {[%clk 0:02:59]} 8. c3 {[%clk 0:02:57]}  Nbc6 {[%clk 0:02:59]} 9. Be3 {[%clk 0:02:58]}  Rb8 {[%clk 0:02:59]} 10. Nbd2 {[%clk 0:02:52]}  b5 {[%clk 0:03:00]} 11. d4 {[%clk 0:02:52]}  cxd4 {[%clk 0:02:59]} 12. cxd4 {[%clk 0:02:52]}  d5 {[%clk 0:02:59]} 13. e5 {[%clk 0:02:51]}  Nf5 {[%clk 0:02:58]} 14. Bf2 {[%clk 0:02:51]}  h5 {[%clk 0:02:58]} 15. Nb3 {[%clk 0:02:51]}  a5 {[%clk 0:02:57]} 16. Rc1 {[%clk 0:02:50]}  a4 {[%clk 0:02:53]} 17. Rxc6 {[%clk 0:02:42]}  Bd7 {[%clk 0:02:51]} 18. Rc5 {[%clk 0:02:22]}  axb3 {[%clk 0:02:50]} 19. Qxb3 {[%clk 0:02:23]}  Rc8 {[%clk 0:02:46]} 20. Rfc1 {[%clk 0:02:21]}  Rxc5 {[%clk 0:02:45]} 21. dxc5 {[%clk 0:02:20]}  Bc6 {[%clk 0:02:44]} 22. Nd4 {[%clk 0:02:18]}  Nxd4 {[%clk 0:02:41]} 23. Bxd4 {[%clk 0:02:19]}  Qa5 {[%clk 0:02:35]} 24. a3 {[%clk 0:02:15]}  Rb8 {[%clk 0:02:29]} 25. Bc3 {[%clk 0:01:57]}  Qa7 {[%clk 0:02:27]} 26. Qb4 {[%clk 0:01:57]}  Bf8 {[%clk 0:02:24]} 27. Bd4 {[%clk 0:01:56]}  Qa4 {[%clk 0:02:23]} 28. Kf2 {[%clk 0:01:45]}  Qxb4 {[%clk 0:02:20]} 29. axb4 {[%clk 0:01:46]}  Ra8 {[%clk 0:02:20]} 30. Bf3 {[%clk 0:01:43]}  Ra4 {[%clk 0:02:17]} 31. Bc3 {[%clk 0:01:41]}  Be7 {[%clk 0:02:05]} 32. Bd1 {[%clk 0:01:40]}  Ra2 {[%clk 0:02:02]} 33. Bb3 {[%clk 0:01:40]}  Ra8 {[%clk 0:02:01]} 34. h3 {[%clk 0:01:36]}  Kf8 {[%clk 0:01:59]} 35. g4 {[%clk 0:01:22]}  hxg4 {[%clk 0:01:55]} 36. hxg4 {[%clk 0:01:22]}  Kg7 {[%clk 0:01:55]} 37. Kg3 {[%clk 0:01:08]}  Rh8 {[%clk 0:01:53]} 38. Bd4 {[%clk 0:00:59]}  Bh4+ {[%clk 0:01:50]} 39. Kg2 {[%clk 0:00:59]}  g5 {[%clk 0:01:32]} 40. f5 {[%clk 0:00:58]}  Ra8 {[%clk 0:01:29]} 41. Kf3 {[%clk 0:00:50]}  Ra7 {[%clk 0:01:23]} 42. Rh1 {[%clk 0:00:47]}  Ra8 {[%clk 0:01:19]} 43. f6+ {[%clk 0:00:44]}  Kh6 {[%clk 0:01:16]} 44. Bc2 {[%clk 0:00:38]}  Ra2 {[%clk 0:01:13]} 45. Rxh4+ {[%clk 0:00:37]}  gxh4 {[%clk 0:01:11]} 46. Be3# {[%clk 0:00:38]} 1-0


[Site "https://www.chess.com"]

[Event "Titled Tuesday Blitz February 14 Early 2023"]
[White "Aggelis, Nikolaos"]
[Black "Grunberg, Mihai-Lucian"]
[WhiteFideId "4213220"]
[BlackFideId "1204149"]
[WhiteElo "2270"]
[BlackElo "2401"]
[Result "1-0"]
[Round "04"]
[TimeControl "180+2"]
[Date "2023.02.15"]
[WhiteClock "0:01:54"]
[BlackClock "0:00:46"]

1. d4 {[%clk 0:03:00]}  f5 {[%clk 0:02:59]} 2. Nf3 {[%clk 0:02:58]}  Nf6 {[%clk 0:02:59]} 3. c3 {[%clk 0:02:56]}  d5 {[%clk 0:02:57]} 4. Nbd2 {[%clk 0:02:53]}  e6 {[%clk 0:02:57]} 5. Ne5 {[%clk 0:02:53]}  Nbd7 {[%clk 0:02:57]} 6. Ndf3 {[%clk 0:02:53]}  Be7 {[%clk 0:02:53]} 7. Bf4 {[%clk 0:02:50]}  O-O {[%clk 0:02:45]} 8. e3 {[%clk 0:02:50]}  Ne4 {[%clk 0:02:44]} 9. h4 {[%clk 0:02:49]}  Nxe5 {[%clk 0:02:43]} 10. Bxe5 {[%clk 0:02:46]}  c5 {[%clk 0:02:42]} 11. Bd3 {[%clk 0:02:46]}  cxd4 {[%clk 0:02:42]} 12. exd4 {[%clk 0:02:44]}  Bd7 {[%clk 0:02:35]} 13. Bg3 {[%clk 0:02:43]}  f4 {[%clk 0:02:30]} 14. Bh2 {[%clk 0:02:41]}  Bxh4 {[%clk 0:02:29]} 15. Nxh4 {[%clk 0:02:39]}  Qxh4 {[%clk 0:02:28]} 16. Qf3 {[%clk 0:02:39]}  Ng5 {[%clk 0:02:21]} 17. Qe2 {[%clk 0:02:35]}  f3 {[%clk 0:02:19]} 18. g3 {[%clk 0:02:23]}  Qh6 {[%clk 0:01:48]} 19. Qe3 {[%clk 0:02:14]}  Rae8 {[%clk 0:01:37]} 20. g4 {[%clk 0:02:14]}  e5 {[%clk 0:01:19]} 21. dxe5 {[%clk 0:02:14]}  Bxg4 {[%clk 0:01:19]} 22. O-O-O {[%clk 0:02:14]}  Ne4 {[%clk 0:01:08]} 23. Qxh6 {[%clk 0:02:09]}  gxh6 {[%clk 0:01:09]} 24. Bxe4 {[%clk 0:02:04]}  dxe4 {[%clk 0:01:09]} 25. Kd2 {[%clk 0:02:03]}  Rf7 {[%clk 0:01:06]} 26. Ke3 {[%clk 0:02:03]}  Bf5 {[%clk 0:01:04]} 27. Bf4 {[%clk 0:02:02]}  Bg6 {[%clk 0:01:01]} 28. Rxh6 {[%clk 0:01:59]}  Kg7 {[%clk 0:00:54]} 29. Rhh1 {[%clk 0:01:58]}  Re6 {[%clk 0:00:48]} 30. Rd8 {[%clk 0:01:54]}  Rb6 {[%clk 0:00:46]} 31. Bh6# {[%clk 0:01:54]} 1-0


[Site "https://www.chess.com"]

[Event "Titled Tuesday Blitz February 14 Early 2023"]
[White "Shubenkova, Veronika"]
[Black "Cunha, Lucas Aguiar"]
[WhiteFideId "44124040"]
[BlackFideId "2125404"]
[WhiteElo "1960"]
[BlackElo "2309"]
[Result "1/2-1/2"]
[Round "04"]
[TimeControl "180+2"]
[Date "2023.02.15"]
[WhiteClock "0:00:11"]
[BlackClock "0:00:05"]

1. e4 {[%clk 0:03:00]}  c5 {[%clk 0:02:59]} 2. Nc3 {[%clk 0:02:59]}  Nc6 {[%clk 0:02:58]} 3. g3 {[%clk 0:02:59]}  g6 {[%clk 0:02:58]} 4. Bg2 {[%clk 0:03:00]}  Bg7 {[%clk 0:02:58]} 5. d3 {[%clk 0:03:00]}  d6 {[%clk 0:02:57]} 6. f4 {[%clk 0:03:00]}  Rb8 {[%clk 0:02:57]} 7. Nf3 {[%clk 0:03:00]}  b5 {[%clk 0:02:56]} 8. Rb1 {[%clk 0:03:01]}  b4 {[%clk 0:02:56]} 9. Ne2 {[%clk 0:03:01]}  Nf6 {[%clk 0:02:53]} 10. Be3 {[%clk 0:03:00]}  O-O {[%clk 0:02:53]} 11. h3 {[%clk 0:03:00]}  a5 {[%clk 0:02:47]} 12. O-O {[%clk 0:03:00]}  a4 {[%clk 0:02:46]} 13. g4 {[%clk 0:03:01]}  b3 {[%clk 0:02:43]} 14. axb3 {[%clk 0:03:00]}  axb3 {[%clk 0:02:44]} 15. c3 {[%clk 0:03:01]}  Nd7 {[%clk 0:02:40]} 16. Ng3 {[%clk 0:03:01]}  e6 {[%clk 0:02:38]} 17. f5 {[%clk 0:03:00]}  Nde5 {[%clk 0:02:36]} 18. Nxe5 {[%clk 0:02:55]}  Nxe5 {[%clk 0:02:37]} 19. Rf2 {[%clk 0:02:51]}  Ba6 {[%clk 0:02:35]} 20. c4 {[%clk 0:02:50]}  Qh4 {[%clk 0:02:23]} 21. Nf1 {[%clk 0:02:47]}  Bh6 {[%clk 0:02:22]} 22. Qd2 {[%clk 0:02:40]}  Bxe3 {[%clk 0:02:13]} 23. Qxe3 {[%clk 0:02:39]}  Rb4 {[%clk 0:02:09]} 24. Nd2 {[%clk 0:02:38]}  Rfb8 {[%clk 0:01:55]} 25. Ra1 {[%clk 0:02:36]}  Bb7 {[%clk 0:01:52]} 26. fxe6 {[%clk 0:02:31]}  fxe6 {[%clk 0:01:48]} 27. Raf1 {[%clk 0:02:31]}  Ra4 {[%clk 0:01:43]} 28. Nxb3 {[%clk 0:02:27]}  Bc6 {[%clk 0:01:36]} 29. Nc1 {[%clk 0:02:26]}  Ra1 {[%clk 0:01:32]} 30. d4 {[%clk 0:02:12]}  cxd4 {[%clk 0:01:06]} 31. Qxd4 {[%clk 0:02:10]}  Qe7 {[%clk 0:01:04]} 32. c5 {[%clk 0:02:10]}  Ra4 {[%clk 0:00:44]} 33. cxd6 {[%clk 0:01:57]}  Qg5 {[%clk 0:00:39]} 34. Qd1 {[%clk 0:01:42]}  Rxe4 {[%clk 0:00:32]} 35. d7 {[%clk 0:01:22]}  Reb4 {[%clk 0:00:08]} 36. Bxc6 {[%clk 0:01:13]}  Nxc6 {[%clk 0:00:09]} 37. Qd6 {[%clk 0:01:12]}  Qd5 {[%clk 0:00:04]} 38. Rf8+ {[%clk 0:01:08]}  Kg7 {[%clk 0:00:04]} 39. R1f7+ {[%clk 0:01:04]}  Kh6 {[%clk 0:00:04]} 40. Qxd5 {[%clk 0:01:00]}  exd5 {[%clk 0:00:05]} 41. Rxb8 {[%clk 0:00:59]}  Rxb8 {[%clk 0:00:03]} 42. Rf6 {[%clk 0:00:54]}  Ne5 {[%clk 0:00:03]} 43. Rd6 {[%clk 0:00:52]}  Rd8 {[%clk 0:00:02]} 44. Rxd5 {[%clk 0:00:53]}  Nxd7 {[%clk 0:00:01]} 45. Nd3 {[%clk 0:00:51]}  Kg7 {[%clk 0:00:02]} 46. Nf4 {[%clk 0:00:50]}  Kf6 {[%clk 0:00:02]} 47. g5+ {[%clk 0:00:47]}  Ke7 {[%clk 0:00:02]} 48. Kf2 {[%clk 0:00:44]}  Rb8 {[%clk 0:00:03]} 49. Rd2 {[%clk 0:00:42]}  Ne5 {[%clk 0:00:02]} 50. Nd5+ {[%clk 0:00:39]}  Ke6 {[%clk 0:00:03]} 51. Ne3 {[%clk 0:00:39]}  Rxb2 {[%clk 0:00:02]} 52. Rxb2 {[%clk 0:00:37]}  Nd3+ {[%clk 0:00:02]} 53. Kf3 {[%clk 0:00:38]}  Nxb2 {[%clk 0:00:03]} 54. Kg4 {[%clk 0:00:35]}  Ke5 {[%clk 0:00:03]} 55. h4 {[%clk 0:00:27]}  Ke4 {[%clk 0:00:04]} 56. Ng2 {[%clk 0:00:27]}  Nd3 {[%clk 0:00:04]} 57. Kg3 {[%clk 0:00:20]}  Ne5 {[%clk 0:00:05]} 58. Nf4 {[%clk 0:00:20]}  Nd7 {[%clk 0:00:05]} 59. Ne6 {[%clk 0:00:20]}  Ke5 {[%clk 0:00:04]} 60. Nf4 {[%clk 0:00:21]}  Kf5 {[%clk 0:00:04]} 61. Ng2 {[%clk 0:00:20]}  Ne5 {[%clk 0:00:04]} 62. Ne3+ {[%clk 0:00:20]}  Ke4 {[%clk 0:00:05]} 63. Nc2 {[%clk 0:00:20]}  Nc4 {[%clk 0:00:04]} 64. Nb4 {[%clk 0:00:20]}  Nd6 {[%clk 0:00:04]} 65. Nc6 {[%clk 0:00:20]}  Nf5+ {[%clk 0:00:05]} 66. Kg4 {[%clk 0:00:20]}  Kd5 {[%clk 0:00:05]} 67. Nd8 {[%clk 0:00:17]}  Kd6 {[%clk 0:00:04]} 68. Nf7+ {[%clk 0:00:15]}  Ke7 {[%clk 0:00:05]} 69. Ne5 {[%clk 0:00:15]}  Ke6 {[%clk 0:00:05]} 70. Nf3 {[%clk 0:00:16]}  Kd5 {[%clk 0:00:04]} 71. Ng1 {[%clk 0:00:15]}  Ke4 {[%clk 0:00:05]} 72. Nh3 {[%clk 0:00:13]}  Ne3+ {[%clk 0:00:04]} 73. Kg3 {[%clk 0:00:14]}  Nd1 {[%clk 0:00:04]} 74. Nf4 {[%clk 0:00:12]}  Nc3 {[%clk 0:00:05]} 75. Ne6 {[%clk 0:00:12]}  Kf5 {[%clk 0:00:03]} 76. Nf8 {[%clk 0:00:11]}  Ne4+ {[%clk 0:00:04]} 77. Kh3 {[%clk 0:00:11]}  Nxg5+ {[%clk 0:00:04]} 78. hxg5 {[%clk 0:00:10]}  Kxg5 {[%clk 0:00:04]} 79. Nxh7+ {[%clk 0:00:11]}  Kf4 {[%clk 0:00:05]} 80. Kh4 {[%clk 0:00:11]}  g5+ {[%clk 0:00:05]} 81. Nxg5 {[%clk 0:00:11]} 1/2-1/2


[Site "https://www.chess.com"]

[Event "Titled Tuesday Blitz February 14 Early 2023"]
[White "Sarkar, Justin"]
[Black "Mohamed Anees M"]
[WhiteFideId "2010011"]
[BlackFideId "35065815"]
[WhiteElo "2309"]
[BlackElo "2315"]
[Result "0-1"]
[Round "04"]
[TimeControl "180+2"]
[Date "2023.02.15"]
[WhiteClock "0:00:01"]
[BlackClock "0:00:41"]

1. d4 {[%clk 0:02:54]}  Nf6 {[%clk 0:02:59]} 2. c4 {[%clk 0:02:52]}  e6 {[%clk 0:02:59]} 3. Nc3 {[%clk 0:02:52]}  Bb4 {[%clk 0:02:59]} 4. Bd2 {[%clk 0:02:51]}  O-O {[%clk 0:02:58]} 5. Nf3 {[%clk 0:02:42]}  d5 {[%clk 0:02:57]} 6. e3 {[%clk 0:02:35]}  b6 {[%clk 0:02:57]} 7. cxd5 {[%clk 0:02:23]}  exd5 {[%clk 0:02:57]} 8. Bd3 {[%clk 0:02:23]}  Bb7 {[%clk 0:02:57]} 9. O-O {[%clk 0:02:16]}  Nbd7 {[%clk 0:02:55]} 10. Rc1 {[%clk 0:02:07]}  a6 {[%clk 0:02:54]} 11. Ne5 {[%clk 0:01:57]}  Bd6 {[%clk 0:02:45]} 12. f4 {[%clk 0:01:54]}  Ne4 {[%clk 0:02:43]} 13. Nxe4 {[%clk 0:01:45]}  dxe4 {[%clk 0:02:42]} 14. Bc4 {[%clk 0:01:45]}  Nf6 {[%clk 0:02:34]} 15. b4 {[%clk 0:01:04]}  Nd5 {[%clk 0:02:28]} 16. Qb3 {[%clk 0:01:01]}  Be7 {[%clk 0:02:25]} 17. a4 {[%clk 0:00:57]}  f6 {[%clk 0:02:20]} 18. Ng4 {[%clk 0:00:46]}  Kh8 {[%clk 0:02:19]} 19. b5 {[%clk 0:00:33]}  axb5 {[%clk 0:02:18]} 20. Bxb5 {[%clk 0:00:31]}  Bd6 {[%clk 0:02:13]} 21. Bc6 {[%clk 0:00:23]}  Bxc6 {[%clk 0:02:12]} 22. Rxc6 {[%clk 0:00:23]}  Ne7 {[%clk 0:02:13]} 23. Rc2 {[%clk 0:00:19]}  Qd7 {[%clk 0:02:14]} 24. Nf2 {[%clk 0:00:18]}  f5 {[%clk 0:02:14]} 25. Ra1 {[%clk 0:00:09]}  Ra7 {[%clk 0:02:14]} 26. a5 {[%clk 0:00:09]}  bxa5 {[%clk 0:01:42]} 27. Rxa5 {[%clk 0:00:08]}  Rxa5 {[%clk 0:01:42]} 28. Bxa5 {[%clk 0:00:08]}  Ra8 {[%clk 0:01:41]} 29. Bc3 {[%clk 0:00:04]}  h6 {[%clk 0:01:39]} 30. Qf7 {[%clk 0:00:03]}  Qe8 {[%clk 0:01:29]} 31. Qe6 {[%clk 0:00:03]}  Qg8 {[%clk 0:01:12]} 32. d5 {[%clk 0:00:02]}  Kh7 {[%clk 0:01:05]} 33. Qd7 {[%clk 0:00:02]}  Qxd5 {[%clk 0:01:03]} 34. Bd4 {[%clk 0:00:01]}  Qb3 {[%clk 0:00:44]} 35. Rc1 {[%clk 0:00:01]}  Qa4 {[%clk 0:00:42]} 36. g4 {[%clk 0:00:01]}  Qxd7 {[%clk 0:00:41]} 0-1


[Site "https://www.chess.com"]